bitfinex-derivatives/quotes_SOLF0:USTF0_20241222
["timestamp","ask_amount","ask_price","bid_price","bid_amount"]
[1734872377554,4.9342,186.3,186.21,59.06064404]
[1734872377754,0.90522213,186.29,186.21,59.06064404]
[1734872378050,0.90522213,186.29,186.2,108.33775137]
[1734872380949,4.9342,186.3,186.17,61.74824404]
[1734872381252,0.90523348,186.29,186.17,59.06064404]
[1734872381559,0.90552594,186.29,186.17,59.06064404]
[1734872381751,16.14,186.28,186.17,59.06064404]
[1734872381957,16.14,186.26,186.15,59.06064404]
[1734872382257,0.90552594,186.25,186.15,59.06064404]
[1734872382757,13.15395068,186.25,186.15,59.06064404]
[1734872382955,0.90563274,186.24,186.15,59.06064404]
[1734872383257,5.1081,186.23,186.1,1.5782]
[1734872383557,3.42563274,186.22,186.1,1.5782]
[1734872383751,2.52,186.22,186.1,1.5782]
[1734872386057,0.90563246,186.21,186.1,1.5782]
[1734872386564,0.90563246,186.21,186.07,60.66164404]
[1734872386856,0.90563246,186.21,186.08,13.47848399]
[1734872387351,23.13472653,186.22,186.08,13.47848399]
[1734872387558,0.90576408,186.21,186.07,1.601]
[1734872388750,23.13472653,186.22,186.07,1.601]
[1734872388957,0.90580747,186.21,186.07,1.601]
[1734872389649,23.13472653,186.22,186.07,1.601]
[1734872389650,0.90580611,186.2,186.07,1.601]
[1734872389854,0.90580611,186.19,186.07,1.601]
[1734872390061,3.42580611,186.18,186.07,1.601]
[1734872390252,2.52,186.18,186.07,1.601]
[1734872390950,2.52,186.18,186.04,1.611]
[1734872391150,0.90563465,186.17,186.04,1.611]
[1734872391460,0.90563465,186.17,186.02,13.47115129]
[1734872391656,4.9751,186.16,186.02,13.47115129]
[1734872391859,0.90563465,186.15,186.02,13.47115129]
[1734872392162,2.52,186.14,186.02,13.47115129]
[1734872392357,0.90487265,186.13,186.02,13.47115129]
[1734872392562,0.90487265,186.13,186.01,3.2261]
[1734872393562,2.52,186.14,186.01,3.2261]
[1734872393858,0.90432417,186.13,186.01,3.2261]
[1734872395958,2.52,186.14,186.01,3.2261]
[1734872396152,0.90366967,186.13,186.01,3.2261]
[1734872396759,0.90356491,186.12,185.99,0.19701]
[1734872397060,0.90356491,186.11,185.99,0.19701]
[1734872397357,3.42356491,186.1,185.99,0.19701]
[1734872397560,2.52,186.1,185.99,0.19701]
[1734872398462,1.7054,186.09,185.99,0.19701]
[1734872399058,3.3093,186.09,185.99,0.19701]
[1734872399259,4.9711,186.09,185.99,0.19701]
[1734872400464,2.52,186.08,185.99,0.19701]
[1734872400764,2.52,186.07,186.0,2.6901]
[1734872400965,2.52,186.07,186.01,1.6081]
[1734872402862,16.14,186.19,186.01,1.6081]
[1734872403063,1.5671,186.18,186.04,2.6895]
[1734872403262,3.42385042,186.17,186.01,1.6081]
[1734872403566,3.42385042,186.16,186.05,2.6893]
[1734872403768,2.52,186.16,186.01,1.6081]
[1734872404360,2.52,186.16,186.06,2.6892]
[1734872405157,2.52,186.16,186.07,1.6597]
[1734872405561,2.52,186.16,186.08,1.7311]
[1734872405765,2.52,186.15,186.08,1.7311]
[1734872406263,2.52,186.15,186.08,3.3621]
[1734872407059,3.3356,186.25,186.08,3.3621]
[1734872407264,3.42392878,186.24,186.08,3.3621]
[1734872407468,0.90392878,186.23,186.08,3.3621]
[1734872407670,0.90392878,186.23,186.13,2.6883]
[1734872408265,2.52,186.22,186.11,2.52]
[1734872408967,2.52,186.22,186.14,2.6881]
[1734872409364,2.52,186.22,186.11,2.52]
[1734872409568,2.52,186.22,186.15,2.688]
[1734872409871,2.52,186.22,186.16,1.7277]
[1734872410078,2.52,186.22,186.08,1.631]
[1734872410079,2.52,186.22,186.1,2.6885]
[1734872410279,2.52,186.22,186.09,1.7277]
[1734872412274,2.52,186.22,186.15,2.6879]
[1734872412481,2.52,186.22,186.16,3.2418]
[1734872412978,2.52,186.23,186.17,1.6124]
[1734872413178,3.2586,186.32,186.17,1.6124]
[1734872413476,0.90462177,186.31,186.2,2.6871]
[1734872413681,3.42462177,186.31,186.17,1.6124]
[1734872413878,0.90462177,186.3,186.17,1.6124]
[1734872414081,0.90462177,186.3,186.21,2.687]
[1734872414380,2.52,186.31,186.2,2.52]
[1734872414580,2.52,186.3,186.2,2.52]
[1734872414988,2.52,186.3,186.24,2.6867]
[1734872415179,2.52,186.3,186.25,1.6244]
[1734872415579,2.5,186.31,186.25,1.6244]
[1734872415884,2.5,186.33,186.25,1.6244]
[1734872416184,5.0217,186.42,186.26,3.1557]
[1734872416483,0.90446453,186.41,186.26,3.1557]
[1734872416683,2.5,186.4,186.26,3.1557]
[1734872416883,0.90446453,186.39,186.26,3.1557]
[1734872418086,0.90446453,186.39,186.26,5.6557]
[1734872418487,2.5,186.4,186.27,2.6862]
[1734872418788,0.90387534,186.39,186.26,3.1557]
[1734872419286,0.90383628,186.38,186.26,3.1557]
[1734872419485,0.90383628,186.37,186.26,3.1557]
[1734872419688,3.40383628,186.36,186.26,3.1557]
[1734872419986,2.5,186.35,186.26,3.1557]
[1734872420280,2.5,186.34,186.26,3.1557]
[1734872420587,2.5,186.34,186.27,2.6862]
[1734872420783,2.5,186.34,186.26,3.1557]
[1734872421986,5.0217,186.42,186.27,2.5]
[1734872422291,3.40359801,186.41,186.27,2.5]
[1734872422587,0.90359801,186.4,186.27,2.5]
[1734872422782,2.5,186.39,186.27,2.5]
[1734872423188,2.5,186.39,186.32,2.6855]
[1734872423689,2.5,186.4,186.32,2.6855]
[1734872425186,2.5,186.4,186.31,5.1856]
[1734872426187,2.5,186.41,186.34,2.6852]
[1734872426392,2.5,186.42,186.31,2.5]
[1734872426990,2.5,186.42,186.33,2.6852]
[1734872427288,2.5,186.42,186.31,2.5]
[1734872427893,2.5,186.42,186.34,2.6852]
[1734872428386,1.723,186.46,186.31,2.5]
[1734872428584,2.5,186.45,186.36,2.6849]
[1734872428789,2.5,186.44,186.36,2.6849]
[1734872428986,2.5,186.44,186.31,2.5]
[1734872430094,61.48,186.49,186.31,2.5]
[1734872430392,2.5,186.48,186.31,2.5]
[1734872431397,2.5,186.48,186.42,2.684]
[1734872431891,2.5,186.48,186.39,2.5]
[1734872432095,2.5,186.48,186.41,2.6842]
[1734872433389,2.5,186.48,186.4,3.424]
[1734872434298,2.5,186.48,186.26,17.6934]
[1734872434486,2.5,186.48,186.37,2.6848]
[1734872436093,2.5,186.48,186.35,2.5]
[1734872436094,2.5,186.48,186.27,3.3992]
[1734872436293,2.5,186.48,186.28,2.5]
[1734872436796,2.5,186.48,186.34,2.6851]
[1734872437392,2.5,186.48,186.35,2.6851]
[1734872437696,2.5,186.48,186.32,2.5]
[1734872438196,2.5,186.48,186.34,2.6852]
[1734872438393,2.5,186.48,186.32,2.5]
[1734872438888,2.5,186.47,186.32,2.5]
[1734872439093,2.5,186.46,186.32,2.5]
[1734872439593,2.5,186.46,186.39,2.6844]
[1734872439800,2.5,186.46,186.36,2.5]
[1734872439993,4.7869,186.52,186.37,5.7953]
[1734872440195,2.5,186.51,186.4,2.6842]
[1734872440395,4.7869,186.52,186.38,1.6447]
[1734872440595,2.5,186.5,186.38,1.6447]
[1734872440899,2.5,186.5,186.42,2.684]
[1734872441099,60.0386183,186.55,186.41,2.5]
[1734872441396,2.5,186.52,186.46,2.6834]
[1734872442593,60.0386183,186.55,186.46,2.6834]
[1734872442899,2.5,186.54,186.41,2.5]
[1734872443398,1.6043,186.53,186.41,2.5]
[1734872443598,1.6043,186.53,186.43,2.6839]
[1734872443901,1.6043,186.53,186.38,1.6447]
[1734872444394,1.6043,186.53,186.34,2.5]
[1734872444599,1.6043,186.53,186.36,2.6848]
[1734872444994,1.6043,186.53,186.33,2.5]
[1734872446199,1.6043,186.53,186.38,2.6846]
[1734872446696,1.6043,186.53,186.36,2.6849]
[1734872447198,0.90437292,186.52,186.36,2.6849]
[1734872447598,1.5808,186.51,186.36,2.6849]
[1734872447799,2.5,186.5,186.36,2.6849]
[1734872448203,2.5,186.5,186.37,2.6848]
[1734872449803,2.5,186.5,186.38,2.6846]
[1734872450999,2.5,186.5,186.32,2.5]
[1734872451505,2.5,186.5,186.37,2.6848]
[1734872451806,2.5,186.5,186.33,2.5]
[1734872453004,2.5,186.5,186.31,13.32700707]
[1734872453211,18.64,186.5,186.31,13.32700707]
[1734872453508,0.90445033,186.49,186.31,16.01260707]
[1734872454008,1.6982,186.48,186.31,16.01260707]
[1734872454208,1.6982,186.48,186.31,13.32700707]
[1734872454609,1.6982,186.48,186.3,2.6858]
[1734872454811,1.6982,186.48,186.28,2.5]
[1734872455010,1.6982,186.48,186.31,2.6856]
[1734872455510,0.90455971,186.47,186.3,2.6858]
[1734872455707,2.5,186.46,186.3,2.6858]
[1734872455901,4.0843,186.46,186.3,2.6858]
[1734872457606,20.2243,186.46,186.26,4.1822]
[1734872457813,20.2243,186.46,186.26,1.6822]
[1734872458514,0.90423457,186.45,186.26,1.6822]
[1734872459116,0.90423457,186.45,186.24,79.31269343]
[1734872459314,16.14,186.43,186.24,79.31269343]
[1734872459513,16.14,186.41,186.24,79.31269343]
[1734872459814,1.659,186.4,186.24,79.31269343]
[1734872460014,1.659,186.4,186.23,2.6867]
[1734872460214,1.5799,186.39,186.23,2.6867]
[1734872460418,2.5,186.38,186.23,2.6867]
[1734872460606,2.5,186.38,186.25,2.6865]
[1734872460913,2.5,186.38,186.2,13.49525757]
[1734872462114,2.5,186.38,186.21,2.6871]
[1734872462610,16.14,186.37,186.21,2.6871]
[1734872462805,16.14,186.37,186.17,1.567]
[1734872463215,0.90433975,186.36,186.17,1.567]
[1734872463516,0.90433975,186.36,186.18,2.6875]
[1734872463917,16.14,186.37,186.18,2.6875]
[1734872464121,17.7199,186.39,186.17,1.567]
[1734872464307,16.14,186.37,186.17,1.567]
[1734872464512,1.5799,186.39,186.27,2.6862]
[1734872464713,2.54,186.38,186.23,2.54]
[1734872464915,2.54,186.38,186.24,3.3921]
[1734872465116,1.5799,186.39,186.24,3.3921]
[1734872465315,1.5799,186.39,186.25,1.6915]
[1734872465513,2.54,186.38,186.25,1.6915]
[1734872466615,2.54,186.38,186.3,2.6858]
[1734872466811,2.54,186.38,186.27,2.54]
[1734872467410,1.659,186.4,186.31,2.6856]
[1734872467615,2.54,186.38,186.31,2.6856]
[1734872467822,2.54,186.38,186.27,2.54]
[1734872468421,2.54,186.38,186.32,2.6855]
[1734872468811,2.54,186.38,186.27,2.54]
[1734872469019,2.54,186.38,186.33,2.6853]
[1734872469526,2.54,186.41,186.33,2.6853]
[1734872469819,1.6162,186.5,186.31,2.54]
[1734872470120,1.6162,186.5,186.36,2.6848]
[1734872470121,2.54,186.49,186.36,2.6848]
[1734872470518,4.8423,186.5,186.35,2.54]
[1734872470817,2.54,186.49,186.36,1.5931]
[1734872472024,2.54,186.49,186.39,2.6845]
[1734872472224,4.8423,186.5,186.36,1.5931]
[1734872472421,2.54,186.49,186.41,2.6841]
[1734872472624,1.5621,186.54,186.39,2.54]
[1734872472825,2.54,186.53,186.4,1.6965]
[1734872474621,2.54,186.54,186.44,2.6838]
[1734872474818,2.54,186.55,186.45,4.142]
[1734872475228,2.54,186.55,186.46,2.6834]
[1734872475930,2.54,186.55,186.45,4.142]
[1734872476935,2.54,186.55,186.43,2.54]
[1734872477126,1.7077,186.54,186.4,1.6965]
[1734872477523,1.684,186.53,186.4,1.6965]
[1734872477734,3.2592,186.53,186.4,1.6965]
[1734872478031,3.2592,186.53,186.37,2.54]
[1734872478229,3.2592,186.53,186.36,2.54]
[1734872478821,3.2592,186.53,186.4,2.6844]
[1734872479232,3.2592,186.53,186.36,2.54]
[1734872479433,3.2592,186.53,186.41,2.6842]
[1734872479633,3.2592,186.53,186.36,2.54]
[1734872480033,3.2592,186.53,186.43,2.6839]
[1734872480233,1.5752,186.53,186.41,2.54]
[1734872480533,1.5752,186.53,186.42,5.8958]
[1734872480733,1.5752,186.53,186.44,2.6838]
[1734872483248,16.14,186.61,186.47,2.6833]
[1734872483545,1.7309,186.6,186.43,4.1225]
[1734872483847,2.54,186.59,186.43,4.1225]
[1734872484245,2.54,186.59,186.47,2.6832]
[1734872484444,1.7309,186.6,186.43,4.1225]
[1734872484746,2.54,186.59,186.43,4.1225]
[1734872484940,2.54,186.59,186.49,2.683]
[1734872485141,2.54,186.58,186.49,2.683]
[1734872485542,2.54,186.6,186.52,2.6825]
[1734872485740,1.5936,186.64,186.51,2.54]
[1734872485942,2.54,186.63,186.52,1.6101]
[1734872486344,2.54,186.63,186.52,4.9428]
[1734872486744,2.54,186.63,186.52,7.6254]
[1734872486942,2.54,186.63,186.52,1.6101]
[1734872487147,18.68,186.63,186.45,2.54]
[1734872487343,18.68,186.63,186.46,2.6834]
[1734872488249,0.90369602,186.62,186.46,2.6834]
[1734872489252,18.68,186.63,186.46,2.6834]
[1734872490047,0.90370043,186.62,186.46,2.6834]
[1734872490353,0.90370043,186.62,186.47,2.6833]
[1734872490550,1.5831,186.61,186.45,2.54]
[1734872491645,1.5831,186.61,186.44,2.54]
[1734872491951,16.14,186.6,186.43,2.54]
[1734872492151,2.54,186.59,186.43,5.2238]
[1734872492451,2.54,186.59,186.43,2.6838]
[1734872492950,18.68,186.59,186.42,2.6841]
[1734872493953,0.90367198,186.58,186.42,2.6841]
[1734872494248,3.2481,186.57,186.42,2.6841]
[1734872495951,19.3881,186.57,186.35,2.6]
[1734872496142,0.90381849,186.56,186.36,1.6753]
[1734872497246,2.6,186.55,186.36,1.6753]
[1734872497755,1.6535,186.54,186.36,1.6753]
[1734872498555,1.6535,186.54,186.37,2.6847]
[1734872499353,1.6535,186.54,186.36,4.3601]
[1734872499655,0.90362727,186.53,186.36,1.6753]
[1734872500354,1.6535,186.54,186.36,1.6753]
[1734872500947,1.6535,186.54,186.38,2.6846]
[1734872501149,1.6535,186.54,186.36,1.6753]
[1734872501356,0.9033862,186.53,186.36,1.6753]
[1734872501749,0.9033862,186.53,186.32,5.8779]
[1734872502055,0.9033862,186.53,186.32,3.2779]
[1734872502245,0.9033862,186.53,186.3,60.94337345]
[1734872502449,0.9033862,186.53,186.3,63.62907345]
[1734872502450,16.14,186.52,186.3,63.62907345]
[1734872502652,0.9033862,186.51,186.3,60.94337345]
[1734872502959,16.14,186.49,186.3,60.94337345]
[1734872503253,3.67238605,186.5,186.3,1.5977]
[1734872503254,16.14,186.47,186.3,1.5977]
[1734872503454,16.14,186.45,186.3,1.5977]
[1734872503650,4.1953,186.44,186.3,1.5977]
[1734872506856,1.5953,186.44,186.3,1.5977]
[1734872507057,2.6,186.43,186.3,1.5977]
[1734872508060,2.6,186.43,186.31,2.6855]
[1734872508260,2.6,186.43,186.3,1.5977]
[1734872510258,2.6,186.42,186.3,1.5977]
[1734872510461,1.5953,186.44,186.3,1.5977]
[1734872510661,2.6,186.43,186.3,4.2835]
[1734872511860,2.6,186.43,186.3,1.5977]
[1734872512164,2.6,186.43,186.27,5.8576]
[1734872512466,17.04232447,186.42,186.2,1.5848]
[1734872512667,0.90232447,186.41,186.2,1.5848]
[1734872513057,1.5812,186.4,186.18,59.34567345]
[1734872513366,0.90232447,186.39,186.18,59.34567345]
[1734872513565,2.6,186.38,186.18,62.03317345]
[1734872513763,0.90232447,186.37,186.18,62.03317345]
[1734872514161,1.6201,186.36,186.18,2.6875]
[1734872514362,0.90232447,186.35,186.18,2.6875]
[1734872515463,0.90232447,186.35,186.15,4.1848]
[1734872515662,1.6201,186.36,186.16,2.6]
[1734872515960,0.90238557,186.35,186.16,2.6]
[1734872516165,1.6201,186.36,186.16,2.6]
[1734872516464,1.6201,186.36,186.18,2.6875]
[1734872517161,1.6201,186.36,186.15,1.5848]
[1734872517361,0.902297,186.35,186.15,4.1848]
[1734872517561,0.902297,186.35,186.15,1.5848]
[1734872518462,0.902297,186.35,186.15,4.2728]
[1734872518765,0.90222382,186.34,186.15,4.2728]
[1734872518955,2.6,186.33,186.15,4.2728]
[1734872519155,1.5972,186.32,186.15,4.2728]
[1734872520163,1.5972,186.32,186.15,1.5848]
[1734872520965,1.5972,186.32,186.14,3.1974]
[1734872521157,0.90169493,186.31,186.1,1.7124]
[1734872521564,1.6777,186.3,186.1,1.7124]
[1734872521759,0.90169493,186.29,186.1,1.7124]
[1734872521958,0.90169493,186.29,186.1,4.7524]
[1734872522167,4.6379,186.28,186.13,2.6882]
[1734872522465,4.6379,186.28,186.1,4.7524]
[1734872522656,4.6379,186.28,186.14,2.688]
[1734872523870,4.6379,186.28,186.1,1.7124]
[1734872524769,4.6379,186.28,186.12,2.6883]
[1734872525466,1.6777,186.3,186.1,1.7124]
[1734872525671,1.5972,186.32,186.1,17.8424]
[1734872525860,3.04,186.33,186.1,17.8424]
[1734872526868,3.04,186.33,186.1,1.7124]
[1734872527066,4.6978,186.33,186.1,1.7124]
[1734872527673,4.6978,186.33,186.17,2.6876]
[1734872529776,4.6978,186.33,186.18,2.6875]
[1734872530075,3.04,186.32,186.16,3.1512]
[1734872530873,3.04,186.32,186.2,2.6872]
[1734872531376,3.04,186.32,186.16,3.1512]
[1734872532176,3.04,186.32,186.21,2.687]
[1734872532373,3.04,186.32,186.16,3.1512]
[1734872532974,3.04,186.32,186.19,2.6874]
[1734872534476,19.17,186.32,186.16,3.1512]
[1734872535176,0.90144465,186.31,186.16,3.1512]
[1734872535373,0.90144465,186.31,186.1,61.05807345]
[1734872535569,0.90144465,186.31,186.1,64.43287345]
[1734872536081,0.90144465,186.31,186.1,5.0872]
[1734872538890,0.90144465,186.31,186.14,2.6881]
[1734872539692,0.90147957,186.3,186.14,2.6881]
[1734872539891,19.17,186.32,186.1,5.0872]
[1734872540086,0.90145809,186.31,186.1,5.0872]
[1734872541090,0.90145809,186.31,186.13,2.6882]
[1734872541795,0.90145809,186.31,186.1,5.0872]
[1734872542191,19.17,186.32,186.1,5.0872]
[1734872542392,0.90142922,186.31,186.1,5.0872]
[1734872543896,0.90142922,186.31,186.11,2.6885]
[1734872544396,0.90142922,186.31,186.1,5.0872]
[1734872546597,16.13,186.3,186.1,5.0872]
[1734872546902,0.90142922,186.29,186.1,5.0872]
[1734872547592,0.9010679,186.28,186.1,5.0872]
[1734872547898,16.13,186.26,186.1,5.0872]
[1734872548096,19.4599,186.25,186.1,5.0872]
[1734872550190,0.90109116,186.24,186.1,5.0872]
[1734872550898,19.4599,186.25,186.1,5.0872]
[1734872551098,0.90105984,186.24,186.1,5.0872]
[1734872551392,0.90105984,186.24,186.03,79.37223587]
[1734872551599,0.90105984,186.24,186.05,1.6106]
[1734872552698,19.4599,186.25,186.05,1.6106]
[1734872552898,0.90103846,186.24,186.05,1.6106]
[1734872553198,16.13,186.23,186.02,13.50678144]
[1734872553498,16.13,186.21,186.02,13.50678144]
[1734872553698,0.90103846,186.2,185.98,16.75008144]
[1734872553899,1.6092,186.19,185.98,19.44048144]
[1734872554100,0.90103846,186.18,185.99,1.595]
[1734872554294,3.0,186.17,185.99,1.595]
[1734872554498,0.90103846,186.16,185.99,1.595]
[1734872555396,0.90070408,186.15,185.99,1.595]
[1734872555596,22.5265,186.17,185.99,1.595]
[1734872555903,0.90067892,186.16,185.99,1.595]
[1734872556899,0.90067892,186.16,185.98,3.2433]
[1734872557303,17.20440236,186.15,185.98,3.2433]
[1734872557602,0.90067892,186.14,185.93,3.53495558]
[1734872557800,21.64681097,186.15,185.94,1.7106]
[1734872558005,0.9003113,186.14,185.94,1.7106]
[1734872558600,0.90022195,186.13,185.94,1.7106]
[1734872558803,16.13,186.11,185.94,1.7106]
[1734872559004,2.57702195,186.1,185.94,1.7106]
[1734872559209,0.90022195,186.09,185.94,1.7106]
[1734872559406,4.26932195,186.09,185.94,1.7106]
[1734872559701,0.90022195,186.08,185.94,1.7106]
[1734872559899,3.0,186.07,185.94,1.7106]
[1734872560199,0.90022195,186.06,185.93,1.6311]
[1734872560405,19.13,186.07,185.88,3.4287]
[1734872560706,0.8998601,186.06,185.88,3.4287]
[1734872561201,3.0,186.07,185.88,3.4287]
[1734872561805,3.0,186.07,185.91,2.6914]
[1734872561999,3.0,186.07,185.88,3.4287]
[1734872562000,3.0,186.07,185.92,1.7258]
[1734872565410,0.8999315,186.06,185.92,1.7258]
[1734872565600,3.0,186.07,185.92,1.7258]
[1734872565804,0.89996274,186.06,185.92,1.7258]
[1734872566300,3.0,186.07,185.92,1.7258]
[1734872566498,0.89994579,186.06,185.92,1.7258]
[1734872567802,3.0,186.07,185.92,1.7258]
[1734872568111,0.89972235,186.06,185.92,1.7258]
[1734872568509,3.0,186.07,185.92,1.7258]
[1734872568709,0.89971863,186.06,185.92,1.7258]
[1734872570310,0.89966065,186.05,185.92,1.7258]
[1734872570510,3.0,186.07,185.92,1.7258]
[1734872570809,0.89967433,186.06,185.92,1.7258]
[1734872572219,3.3691,186.09,185.93,3.0]
[1734872572414,3.89981635,186.08,185.93,3.0]
[1734872572610,3.0,186.07,185.99,2.6903]
[1734872572818,61.52,186.11,186.0,4.9195]
[1734872573016,3.0,186.1,186.0,4.9195]
[1734872574418,0.89957434,186.09,185.93,3.0]
[1734872574718,5.82287434,186.09,185.94,4.9195]
[1734872575018,0.89957434,186.08,185.94,4.9195]
[1734872576120,0.8994274,186.07,185.94,4.9195]
[1734872576321,0.8994274,186.06,185.94,4.9195]
[1734872576517,3.8994274,186.05,185.94,4.9195]
[1734872576718,3.0,186.05,185.94,4.9195]
[1734872579120,3.0,186.04,185.94,4.9195]
[1734872580216,3.0,186.04,185.95,2.6908]
[1734872580521,3.0,186.04,185.94,4.9195]
[1734872582618,3.0,186.04,185.95,2.6907]
[1734872582823,3.0,186.04,185.94,4.9195]
[1734872583023,3.0,186.04,185.96,2.6906]
[1734872583418,61.52,186.11,185.96,2.6906]
[1734872583618,3.84027226,186.1,185.96,2.6906]
[1734872583822,2.94,186.1,185.96,2.6906]
[1734872584023,2.94,186.1,185.94,4.9195]
[1734872584220,0.9001697,186.09,185.94,4.9195]
[1734872585724,0.90034688,186.08,185.94,4.9195]
[1734872585925,0.90034688,186.07,185.94,4.9195]
[1734872586219,0.90034688,186.06,185.94,4.9195]
[1734872586523,3.84034688,186.05,185.94,4.9195]
[1734872586823,0.90034688,186.04,185.94,4.9195]
[1734872588126,2.94,186.05,185.94,4.9195]
[1734872588427,0.90102066,186.04,185.94,4.9195]
[1734872588817,19.07,186.05,185.94,3.2895]
[1734872589021,18.73079968,186.04,185.94,3.2895]
[1734872589322,0.90089968,186.03,185.94,3.2895]
[1734872589724,0.90091294,186.02,185.94,3.2895]
[1734872589927,0.90091294,186.02,185.94,1.6763]
[1734872590125,0.90091099,186.01,185.94,1.6763]
[1734872590425,2.94,186.0,185.9,1.7009]
[1734872595433,0.90095379,185.99,185.89,1.712]
[1734872596228,2.94,186.0,185.89,1.712]
[1734872596431,0.90134221,185.99,185.89,1.712]
[1734872597235,17.03134221,185.99,185.89,1.712]
[1734872597538,0.90134221,185.98,185.85,1.7235]
[1734872598237,0.90134221,185.98,185.83,59.34567345]
[1734872598737,16.13,185.97,185.83,59.34567345]
[1734872598932,0.90134221,185.96,185.83,59.34567345]
[1734872599133,2.94,185.95,185.82,1.7106]
[1734872599534,0.90152865,185.94,185.82,1.7106]
[1734872600140,0.90152865,185.94,185.8,59.65130345]
[1734872600341,0.90152865,185.94,185.8,0.30563]
[1734872600732,17.03152865,185.94,185.8,0.30563]
[1734872600938,0.90152865,185.93,185.8,0.30563]
[1734872603047,16.13,185.91,185.8,0.30563]
[1734872603351,19.97152865,185.9,185.8,0.30563]
[1734872603648,0.90152865,185.89,185.8,0.30563]
[1734872604151,2.94,185.88,185.8,0.30563]
[1734872606348,2.94,185.87,185.8,0.30563]
[1734872609454,2.96,185.86,185.8,0.30563]
[1734872611549,2.82,185.86,185.8,0.30563]
[1734872614156,2.82,185.87,185.8,0.30563]
[1734872615050,1.6,185.92,185.8,0.30563]
[1734872615257,19.4664,185.96,185.8,3.44163]
[1734872615456,3.72050858,185.95,185.8,3.44163]
[1734872615654,3.72050858,185.94,185.81,1.6344]
[1734872615855,3.3364,185.96,185.81,1.6344]
[1734872616053,2.82,185.93,185.81,1.6344]
[1734872616249,0.90057474,185.92,185.8,0.30563]
[1734872616455,2.60387474,185.92,185.8,0.30563]
[1734872616655,0.90057474,185.91,185.8,0.30563]
[1734872616852,0.90057474,185.91,185.77,2.6934]
[1734872617053,0.90047406,185.9,185.78,1.6344]
[1734872617255,0.90047406,185.89,185.78,1.6344]
[1734872617455,2.82,185.88,185.78,1.6344]
[1734872619353,1.7033,185.92,185.78,1.6344]
[1734872619560,2.82,185.91,185.78,1.6344]
[1734872619853,2.82,185.91,185.81,2.6928]
[1734872620354,3.3364,185.96,185.82,2.6926]
[1734872620554,3.72049649,185.95,185.78,1.6344]
[1734872620753,0.90049649,185.94,185.78,1.6344]
[1734872621254,0.90049649,185.94,185.83,2.6926]
[1734872622059,0.90049649,185.94,185.78,15.14649849]
[1734872622255,0.90049351,185.93,185.78,15.14649849]
[1734872622457,0.90049351,185.92,185.78,15.14649849]
[1734872623560,0.90049351,185.92,185.78,1.6344]
[1734872624858,0.90024795,185.91,185.78,1.6344]
[1734872625056,3.72024795,185.9,185.78,1.6344]
[1734872625261,2.82,185.9,185.78,1.6344]
[1734872625455,1.6091,185.89,185.78,1.6344]
[1734872628557,2.82,185.88,185.78,1.6344]
[1734872629466,0.900238,185.87,185.75,79.66496443]
[1734872630062,20.5623,185.88,185.75,79.66496443]
[1734872630261,0.90012792,185.87,185.75,79.66496443]
[1734872630561,0.90012792,185.87,185.73,64.09487345]
[1734872631055,0.90012792,185.87,185.73,59.34567345]
[1734872631262,16.13,185.85,185.73,59.34567345]
[1734872631856,16.13,185.85,185.72,59.34567345]
[1734872632866,1.6125,185.86,185.72,62.03987345]